bitfinex-derivatives/quotes_BNBF0:USTF0_20250115
["timestamp","ask_amount","ask_price","bid_price","bid_amount"]
[1736956051984,0.26101817,704.94,701.75,1.05091482]
[1736956052284,1.05939441,705.01,701.9,0.28494087]
[1736956052285,0.26101817,704.93,701.9,0.28494087]
[1736956052490,0.26101817,704.92,701.91,2.49214002]
[1736956052791,1.05939441,704.63,702.43,1.05091482]
[1736956052991,0.26101817,704.62,702.43,1.05091482]
[1736956053291,0.26104155,704.61,702.43,1.05091482]
[1736956053590,1.05939441,704.96,702.23,1.26109778]
[1736956053591,0.26104155,704.6,702.26,1.05091482]
[1736956053791,0.26104155,704.59,702.26,1.05091482]
[1736956053990,0.26104155,704.58,702.26,1.05091482]
[1736956054192,0.26104155,704.57,702.26,1.05091482]
[1736956054393,0.26104155,704.56,702.26,1.05091482]
[1736956054590,0.26104155,704.56,694.85,4.96173863]
[1736956054591,0.26104155,704.71,702.14,1.05091482]
[1736956054787,0.26101414,704.7,702.14,1.05091482]
[1736956054987,0.26101414,704.81,702.14,1.05091482]
[1736956055190,0.26101414,704.8,702.14,1.05091482]
[1736956055387,0.26101414,704.79,702.15,1.63797863]
[1736956055694,0.26101414,704.78,702.18,1.05091482]
[1736956055894,0.26101414,704.77,702.18,1.05091482]
[1736956056095,0.26102153,704.76,702.18,1.05091482]
[1736956056392,0.26102153,704.75,702.18,1.05091482]
[1736956056597,0.26102153,704.74,702.16,3.80644506]
[1736956056798,0.26102153,704.73,702.16,1.05091482]
[1736956057111,0.26102153,704.72,702.28,0.28478669]
[1736956057297,0.26102153,704.71,702.28,0.28478669]
[1736956057498,0.26102153,704.7,702.28,0.28478669]
[1736956057698,0.26100939,704.69,702.28,0.28478669]
[1736956057895,0.26100939,704.68,702.28,0.28478669]
[1736956058197,0.26100939,704.67,702.28,0.28478669]
[1736956058393,0.54483421,704.66,702.28,0.28478669]
[1736956058593,0.26100939,704.65,702.28,0.28478669]
[1736956058797,0.26102007,704.65,702.28,0.28478669]
[1736956058998,0.26102007,704.65,702.29,2.75244747]
[1736956059998,0.26102007,704.65,702.3,1.63573937]
[1736956060199,0.26102007,704.65,702.31,2.75244747]
[1736956060396,0.26102007,704.65,702.32,1.63573937]
[1736956061001,0.26102007,704.65,702.43,0.28472588]
[1736956061502,0.28382482,704.66,702.43,0.28472588]
[1736956061701,0.28383287,704.64,702.43,0.28472588]
[1736956061901,0.26103799,704.63,702.43,0.28472588]
[1736956064402,0.28383287,704.64,702.43,0.28472588]
[1736956064403,0.26104051,704.62,702.43,0.28472588]
[1736956064597,0.26104051,704.61,702.43,0.28472588]
[1736956064903,0.26104051,704.6,702.43,0.28472588]
[1736956065098,0.26104051,704.59,702.43,0.28472588]
[1736956065303,0.26104051,704.58,702.43,0.28472588]
[1736956065499,0.26104051,704.57,702.43,0.28472588]
[1736956065703,0.26104051,704.56,702.43,0.28472588]
[1736956066004,0.54490964,704.55,702.43,0.28472588]
[1736956066196,0.54491367,704.54,702.43,0.28472588]
[1736956066397,0.26104051,704.53,702.43,0.28472588]
[1736956066902,0.28387316,704.54,702.43,0.28472588]
[1736956067099,0.2610339,704.52,702.43,0.28472588]
[1736956067305,0.54491856,704.51,702.43,0.28472588]
[1736956067603,0.26103331,704.5,702.43,0.28472588]
[1736956068001,0.26103867,704.49,702.43,0.28472588]
[1736956068197,0.26103867,704.5,702.43,0.28472588]
[1736956068402,0.28388525,704.51,702.43,0.28472588]
[1736956068597,0.26106602,704.49,702.43,0.28472588]
[1736956068902,0.54496336,704.48,702.43,0.28472588]
[1736956069103,1.05939441,704.43,702.43,0.28472588]
[1736956069304,0.54498754,704.42,702.43,0.28472588]
[1736956069513,0.54499157,704.41,702.43,0.28472588]
[1736956069702,0.26106602,704.4,702.43,0.28472588]
[1736956070405,1.05939441,704.35,702.43,0.28472588]
[1736956070705,0.26106602,704.34,702.43,0.28472588]
[1736956071509,1.05939441,704.32,702.43,0.28472588]
[1736956071701,0.26106602,704.31,702.43,0.28472588]
[1736956071901,0.28396989,704.3,702.43,0.28472588]
[1736956072202,0.26106602,704.29,702.43,0.28472588]
[1736956073801,0.28396989,704.3,702.43,0.28472588]
[1736956081110,0.26107954,704.29,702.43,0.28472588]
[1736956082408,1.05939441,704.18,702.43,0.28472588]
[1736956082610,0.26107954,704.17,702.43,0.28472588]
[1736956082811,0.26106605,704.16,702.43,0.28472588]
[1736956083013,0.26106605,704.15,702.43,0.28472588]
[1736956083209,0.26106605,704.17,702.43,0.28472588]
[1736956083511,1.05939441,704.13,702.56,1.05091482]
[1736956083714,1.05939441,704.13,702.58,0.28466509]
[1736956084016,0.26107038,704.12,702.58,0.28466509]
[1736956084713,1.05939441,704.07,702.65,1.05091482]
[1736956085115,1.05939441,704.07,702.67,0.28462863]
[1736956086116,1.05939441,704.09,702.67,0.28462863]
[1736956087213,0.28396989,704.3,702.67,0.28462863]
[1736956087214,1.05939441,704.14,702.67,0.28462863]
[1736956088115,1.05939441,704.18,702.67,0.28462863]
[1736956089121,1.05939441,704.21,702.67,0.28462863]
[1736956090021,1.05939441,704.26,702.67,0.28462863]
[1736956091216,0.28396989,704.3,702.72,1.05091482]
[1736956092321,1.05939441,704.32,702.72,1.05091482]
[1736956092515,1.05939441,704.52,702.86,1.05091482]
[1736956093418,1.05939441,704.58,702.88,0.28454359]
[1736956093619,0.26094065,704.57,702.88,0.28454359]
[1736956094019,0.26094065,704.57,702.88,1.33545841]
[1736956094215,0.26094065,704.6,702.88,1.33545841]
[1736956094418,0.26093789,704.59,702.88,1.33545841]
[1736956094621,0.26093789,704.58,702.88,1.33545841]
[1736956094824,0.26093789,704.6,702.88,1.33545841]
[1736956095025,0.26093789,704.59,702.92,1.05091482]
[1736956095222,0.26093789,704.58,702.92,1.05091482]
[1736956095422,0.26093789,704.57,702.94,0.2845193]
[1736956095725,0.26093789,704.56,702.94,0.2845193]
[1736956096026,0.26093789,704.55,702.94,0.2845193]
[1736956096226,1.05939441,704.66,702.94,0.2845193]
[1736956096420,0.26092355,704.65,702.94,0.2845193]
[1736956096824,0.26092355,704.64,702.94,0.2845193]
[1736956097023,1.05939441,704.73,702.94,0.2845193]
[1736956097225,0.26091644,704.72,702.94,0.2845193]
[1736956097825,0.26091644,704.72,702.97,1.05091482]
[1736956098127,0.26091644,704.72,702.99,0.28449906]
[1736956098926,0.26091644,704.71,702.99,0.28449906]
[1736956099121,0.26091644,704.7,702.99,0.28449906]
[1736956099320,0.26091644,704.69,702.99,0.28449906]
[1736956099526,0.26091644,704.68,702.99,0.28449906]
[1736956099722,0.26091336,704.67,702.99,0.28449906]
[1736956106429,0.26088654,704.66,702.99,0.28449906]
[1736956107824,0.26088669,704.65,702.99,0.28449906]
[1736956108024,0.26091336,704.67,702.99,0.28449906]
[1736956108334,0.2608871,704.66,702.99,0.28449906]
[1736956108731,0.2608871,704.66,703.0,1.63740962]
[1736956109130,0.2608871,704.66,702.99,0.28449906]
[1736956109131,0.26089659,704.65,702.99,0.28449906]
[1736956109331,0.26089659,704.66,703.0,1.63739451]
[1736956109626,0.26089659,704.65,702.99,0.28449906]
[1736956109832,0.26089659,704.64,702.99,0.28449906]
[1736956110030,0.26089659,704.63,702.99,0.28449906]
[1736956110228,0.26089659,704.62,702.99,0.28449906]
[1736956110429,1.05939441,704.99,702.99,0.28449906]
[1736956110430,0.26089659,704.61,702.99,0.28449906]
[1736956110624,0.26089659,704.6,702.99,0.28449906]
[1736956110832,1.320291,704.98,702.99,0.28449906]
[1736956111133,0.26093266,704.97,702.99,0.28449906]
[1736956111432,0.26093266,704.96,702.99,0.28449906]
[1736956111628,0.26093266,704.95,702.99,0.28449906]
[1736956111836,0.26093266,704.94,702.99,0.28449906]
[1736956112032,1.05939441,704.91,702.99,0.28449906]
[1736956112237,0.26093266,704.9,702.99,0.28449906]
[1736956112430,1.05939441,704.91,702.99,0.28449906]
[1736956112431,0.28373623,704.88,702.99,0.28449906]
[1736956112638,0.26093266,704.87,702.99,0.28449906]
[1736956112937,1.05939441,704.85,702.99,0.28449906]
[1736956113136,0.26093266,704.84,702.99,0.28449906]
[1736956113334,0.26093266,704.83,702.99,0.28449906]
[1736956113534,0.26093266,704.82,702.99,0.28449906]
[1736956113734,0.26093266,704.81,702.99,0.28449906]
[1736956113935,0.26097499,704.8,702.99,0.28449906]
[1736956114135,0.26097499,704.79,702.99,0.28449906]
[1736956114332,0.26097499,704.78,702.99,0.28449906]
[1736956114637,0.26097499,704.77,702.99,0.28449906]
[1736956114837,0.26097499,704.76,702.99,0.28449906]
[1736956115131,0.26097499,704.75,702.99,0.28449906]
[1736956115335,0.26097499,704.74,702.99,0.28449906]
[1736956115536,0.28373623,704.88,702.99,0.28449906]
[1736956115537,1.05939441,704.71,702.99,0.28449906]
[1736956115738,0.26097499,704.7,702.99,0.28449906]
[1736956115932,0.26097499,704.69,702.99,0.28449906]
[1736956116130,0.26097499,704.68,702.99,0.28449906]
[1736956116330,0.26097499,704.67,702.99,0.28449906]
[1736956116530,0.26097499,704.7,702.99,0.28449906]
[1736956116730,0.26097499,704.66,702.99,0.28449906]
[1736956116933,0.26097499,704.65,702.99,0.28449906]
[1736956117135,0.26097499,704.72,702.99,0.28449906]
[1736956117336,0.26097499,704.71,702.99,0.28449906]
[1736956117536,0.26097499,704.72,702.99,0.28449906]
[1736956117737,0.26097499,704.71,702.99,0.28449906]
[1736956117938,0.26097499,704.7,702.99,0.28449906]
[1736956118137,0.26097499,704.69,702.99,0.28449906]
[1736956118437,0.26097499,704.68,702.99,0.28449906]
[1736956118637,0.26097499,704.67,702.99,0.28449906]
[1736956118837,0.26097499,704.66,702.99,0.28449906]
[1736956119135,0.26097499,704.65,702.99,0.28449906]
[1736956119335,0.26097499,704.64,702.99,0.28449906]
[1736956119536,0.26090922,704.63,702.99,0.28449906]
[1736956119739,0.26090922,704.72,702.99,0.28449906]
[1736956119938,0.26090868,704.71,702.99,0.28449906]
[1736956120138,0.26090868,704.72,702.99,0.28449906]
[1736956120339,0.26090868,704.71,702.99,0.28449906]
[1736956120540,0.26090868,704.72,702.99,0.28449906]
[1736956120736,0.26090868,704.71,702.99,0.28449906]
[1736956120933,0.26090868,704.7,702.99,0.28449906]
[1736956121136,0.26090868,704.69,702.99,0.28449906]
[1736956121340,0.28379663,704.73,702.99,0.28449906]
[1736956121538,0.26090035,704.72,702.99,0.28449906]
[1736956122241,0.26090598,704.71,702.99,0.28449906]
[1736956122639,0.26090598,704.7,702.99,0.28449906]
[1736956123637,0.26090598,704.71,702.99,0.28449906]
[1736956125438,0.26089363,704.7,702.99,0.28449906]
[1736956125843,0.26089363,704.7,703.0,1.05091482]
[1736956126542,1.32030039,704.71,703.0,1.05091482]
[1736956126742,1.32030039,704.71,703.01,1.05091482]
[1736956126743,1.05939441,704.67,703.01,1.05091482]
[1736956127541,0.26090598,704.71,703.06,1.05091482]
[1736956128542,0.26090598,704.71,703.34,1.05091482]
[1736956129743,0.26090598,704.71,703.16,1.05091482]
[1736956130141,0.26090598,704.71,703.18,0.28442219]
[1736956130545,1.05939441,705.28,703.18,0.28442219]
[1736956130742,0.2607197,705.27,703.18,0.28442219]
[1736956131045,1.05939441,705.37,703.18,0.28442219]
[1736956131240,0.2607207,705.36,703.18,0.28442219]
[1736956131446,0.2607207,705.35,703.18,0.28442219]
[1736956131648,0.2607207,705.34,703.18,0.28442219]
[1736956131842,0.54427591,705.33,703.18,0.28442219]
[1736956132043,1.05939441,705.23,703.19,1.05091482]
[1736956132342,0.2607207,705.22,703.29,0.28437771]
[1736956132645,0.2607207,705.21,703.29,0.28437771]
[1736956132846,1.05939441,705.23,703.29,0.28437771]
[1736956132847,0.2607207,705.2,703.29,0.28437771]
[1736956133047,0.2607207,705.19,703.29,0.28437771]
[1736956133347,0.2607207,705.18,703.29,0.28437771]
[1736956133644,0.2607207,705.17,703.29,0.28437771]
[1736956133844,0.26076556,705.16,703.29,0.28437771]
[1736956134145,0.26076556,705.15,703.29,0.28437771]
[1736956134342,0.26076556,705.14,703.29,0.28437771]
[1736956134645,0.26075399,705.13,703.29,0.28437771]
[1736956134840,0.26075399,705.12,703.29,0.28437771]
[1736956135042,0.26075399,705.11,703.29,0.28437771]
[1736956135239,0.26075399,705.1,703.29,0.28437771]
[1736956135437,0.26075399,705.09,703.29,0.28437771]
[1736956135638,0.26075399,705.08,703.29,0.28437771]
[1736956135944,0.26075399,705.07,703.29,0.28437771]
[1736956136141,0.26075399,705.06,703.29,0.28437771]
[1736956136345,0.26075399,705.05,703.29,0.28437771]
[1736956136540,0.28355923,705.32,703.29,0.28437771]
[1736956136541,1.05939441,705.29,703.29,0.28437771]
[1736956136847,0.26072697,705.28,703.29,0.28437771]
[1736956137047,0.26072697,705.27,703.29,0.28437771]
[1736956137247,0.26072697,705.26,703.29,0.28437771]
[1736956137442,0.26072697,705.25,703.29,0.28437771]
[1736956137644,0.26072697,705.24,703.29,0.28437771]
[1736956137942,0.26072697,705.23,703.29,0.28437771]
[1736956138144,0.26072697,705.22,703.29,0.28437771]
[1736956138345,0.26072697,705.21,703.29,0.28437771]
[1736956138547,0.26072697,705.2,703.29,0.28437771]
[1736956138746,0.26072697,705.19,703.29,0.28437771]
[1736956138946,0.26072697,705.18,703.29,0.28437771]
[1736956139147,0.26072697,705.17,703.29,0.28437771]
[1736956139344,0.28355923,705.32,703.29,0.28437771]
[1736956139548,0.26071345,705.31,703.29,0.28437771]
[1736956139744,0.26071345,705.3,703.29,0.28437771]
[1736956139950,0.26071345,705.29,703.29,0.28437771]
[1736956140148,0.26071345,705.28,703.29,0.28437771]
[1736956140353,0.26071345,705.27,703.29,0.28437771]
[1736956140548,0.26071345,705.26,703.29,0.28437771]
[1736956140851,0.26071345,705.25,703.29,0.28437771]
[1736956141050,0.26071345,705.24,703.29,0.28437771]
[1736956141250,0.26071345,705.31,703.29,0.28437771]
[1736956141452,0.26071345,705.3,703.29,0.28437771]
[1736956141646,0.26071345,705.29,703.29,0.28437771]
[1736956141850,0.26071345,705.28,703.29,0.28437771]
[1736956142051,0.26071345,705.31,703.29,0.28437771]
[1736956142245,0.28355923,705.32,703.29,0.28437771]
[1736956142246,0.26071345,705.3,703.29,0.28437771]
[1736956142452,0.26071345,705.29,703.29,0.28437771]
[1736956142750,0.26071345,705.28,703.29,0.28437771]
[1736956142950,0.26071345,705.27,703.29,0.28437771]
[1736956143145,0.26071345,705.26,703.29,0.28437771]
[1736956143346,0.26071345,705.31,703.29,0.28437771]
[1736956143549,0.26071345,705.3,703.29,0.28437771]
[1736956143750,0.26071345,705.29,703.29,0.28437771]
[1736956143947,0.26071345,705.28,703.29,0.28437771]
[1736956144151,0.26070506,705.27,703.29,0.28437771]
[1736956144350,0.26070506,705.26,703.29,0.28437771]
[1736956144546,0.26070506,705.25,703.29,0.28437771]
[1736956144747,0.26070506,705.24,703.29,0.28437771]
[1736956145052,0.26070506,705.23,703.29,0.28437771]
[1736956145252,0.26070506,705.22,703.29,0.28437771]
[1736956145446,0.26070506,705.21,703.29,0.28437771]
[1736956145645,0.26070506,705.2,703.29,0.28437771]
[1736956145853,0.26070506,705.19,703.29,0.28437771]
[1736956146053,0.26070506,705.18,703.29,0.28437771]
[1736956146255,0.26070506,705.31,703.29,0.28437771]
[1736956146453,0.26070506,705.3,703.29,0.28437771]
[1736956146653,0.28355923,705.32,703.29,0.28437771]
[1736956146654,0.26070506,705.29,703.29,0.28437771]
[1736956146853,0.28355923,705.32,703.29,0.28437771]
[1736956147050,0.2607671,705.28,703.29,0.28437771]
[1736956147253,0.28355923,705.32,703.29,0.28437771]
[1736956147254,0.2607671,705.27,703.29,0.28437771]
[1736956147449,0.2607671,705.26,703.29,0.28437771]
[1736956147648,0.2607671,705.25,703.29,0.28437771]
[1736956147855,0.5443585,705.24,703.29,0.28437771]
[1736956148055,0.2607671,705.23,703.29,0.28437771]
[1736956148257,0.2607671,705.22,703.29,0.28437771]
[1736956148452,0.2607671,705.21,703.29,0.28437771]
[1736956148651,0.2835914,705.24,703.29,0.28437771]
[1736956148652,0.2607671,705.2,703.29,0.28437771]
[1736956148853,0.2607671,705.19,703.29,0.28437771]
[1736956149057,0.54438263,705.18,703.29,0.28437771]
[1736956149257,0.54438665,705.17,703.29,0.28437771]
[1736956149560,0.2607671,705.16,703.29,0.28437771]
[1736956149858,0.54440517,705.15,703.29,0.28437771]
[1736956150057,0.26077758,705.14,703.29,0.28437771]
[1736956150257,0.54441322,705.13,703.29,0.28437771]
[1736956150457,0.28363966,705.12,703.29,0.28437771]
[1736956150660,0.26077889,705.11,703.29,0.28437771]
[1736956152561,0.26075474,705.1,703.29,0.28437771]
[1736956152761,0.26075474,705.11,703.29,0.28437771]
[1736956152962,0.28363966,705.12,703.29,0.28437771]
[1736956161167,0.2607874,705.11,703.29,0.28437771]
[1736956161965,1.05939441,704.83,703.29,0.28437771]
[1736956162265,0.2607874,704.82,703.29,0.28437771]
[1736956163172,1.05939441,704.76,703.29,0.28437771]
[1736956164273,1.05939441,704.83,703.31,1.05091482]
[1736956165068,1.05939441,704.9,703.31,1.05091482]
[1736956165276,1.05939441,704.9,703.33,0.28436153]
[1736956166374,1.05939441,705.03,703.33,0.28436153]
[1736956166571,0.26082264,705.02,703.33,0.28436153]
[1736956166766,1.05939441,705.03,703.33,0.28436153]
[1736956166971,0.54450034,705.02,703.33,0.28436153]
[1736956167175,1.05939441,705.0,703.33,0.28436153]
[1736956167369,0.28369196,704.99,703.33,0.28436153]
[1736956169175,0.26080856,704.98,703.33,0.28436153]
[1736956169976,1.05939441,704.89,703.33,0.28436153]
[1736956170169,0.26080856,704.88,703.33,0.28436153]
[1736956170879,1.05939441,704.86,703.33,1.33527635]
[1736956171076,0.26080856,704.85,703.33,1.33527635]
[1736956171677,0.26080856,704.85,703.33,0.28436153]
[1736956172374,0.26083728,704.84,703.33,0.28436153]
[1736956173573,0.26083728,704.83,703.33,0.28436153]
[1736956173776,1.05939441,704.9,703.33,0.28436153]
[1736956173975,0.26083188,704.89,703.33,0.28436153]
[1736956174679,1.05939441,704.94,703.33,0.28436153]
[1736956174878,0.26081897,704.93,703.33,0.28436153]
[1736956175078,0.26082021,704.92,703.33,0.28436153]
[1736956175274,1.05939441,704.94,703.33,0.28436153]
[1736956175680,0.28369196,704.99,703.33,0.28436153]
[1736956175872,0.26082069,704.98,703.33,0.28436153]
[1736956176075,0.28369196,704.99,703.33,0.28436153]
[1736956176380,0.2608397,704.98,703.33,0.28436153]
[1736956177480,1.05939441,704.97,703.33,0.28436153]
[1736956177779,0.2608397,704.96,703.33,0.28436153]
[1736956178179,1.05939441,704.97,703.33,0.28436153]
[1736956178481,1.3202621,704.96,703.33,0.28436153]
[1736956178675,0.26086769,704.95,703.33,0.28436153]
[1736956179475,0.26086769,704.94,703.33,0.28436153]
[1736956179679,1.34308637,704.99,703.33,0.28436153]
[1736956179680,0.5445838,704.93,703.33,0.28436153]
[1736956179880,0.28371611,704.93,703.33,0.28436153]
[1736956180882,0.26084562,704.92,703.33,0.28436153]
[1736956181581,0.28371611,704.93,703.33,0.28436153]
[1736956183883,1.05939441,705.11,703.33,0.28436153]
[1736956184384,4.07572963,705.97,703.33,0.28436153]
[1736956184385,1.05939441,705.19,703.36,1.05091482]
[1736956184582,0.26072967,705.18,703.36,1.05091482]
[1736956185784,0.26072967,705.18,703.37,1.63710646]
[1736956185986,0.26072967,705.17,703.38,1.05091482]
[1736956186186,1.05939441,705.25,703.38,1.05091482]
[1736956186384,0.26072206,705.24,703.38,1.05091482]
[1736956186885,1.05939441,705.25,703.38,1.05091482]
[1736956187279,0.72624322,706.02,703.43,1.05091482]
[1736956187280,1.05939441,705.3,703.43,1.05091482]
[1736956187483,1.05939441,705.3,703.44,2.48790194]
[1736956187783,1.05939441,705.3,703.45,2.48790194]
[1736956187986,1.05939441,705.3,703.46,2.48790194]
[1736956188185,1.05939441,705.3,703.47,2.48790194]
[1736956188380,1.05939441,705.3,703.43,1.05091482]
[1736956188381,1.05939441,705.3,703.48,2.48790194]
[1736956188683,1.05939441,705.49,703.62,1.05091482]
[1736956188886,0.26063373,705.48,703.63,4.39134723]
[1736956189086,0.26063373,705.48,703.64,1.63671168]
[1736956189281,1.05939441,705.49,703.63,2.75463555]
[1736956189485,0.26064713,705.48,703.63,2.75463555]
[1736956189686,0.26064713,705.48,703.63,3.80555037]
[1736956189885,0.26064713,705.47,703.64,1.63373783]
[1736956190087,0.26064713,705.46,703.65,1.63377855]
[1736956190288,0.26064713,705.54,703.66,1.63377855]
[1736956190488,0.26064713,705.53,703.66,1.63377855]
[1736956190690,0.26064713,705.56,703.66,1.63377855]
[1736956190881,0.26064713,705.55,703.66,1.63377855]
[1736956191085,0.26064713,705.54,703.66,1.63377855]
[1736956191282,2.89317324,706.21,703.66,1.63377855]
[1736956191283,0.26064713,705.53,703.66,1.63377855]
[1736956191483,0.26064713,705.52,703.67,2.75463555]
[1736956191788,0.26064713,705.51,703.68,1.63260143]
[1736956191989,0.26063196,705.5,703.68,1.63260143]
[1736956192289,0.26063196,705.49,703.67,2.75463555]
[1736956192590,0.26063196,705.48,703.67,2.75463555]
[1736956192782,0.26063284,705.47,703.6,2.75463555]
[1736956192986,0.26063284,705.46,703.69,0.28421606]
[1736956193188,0.26063284,705.45,703.69,0.28421606]
[1736956193391,0.26063284,705.44,703.69,0.28421606]
[1736956193689,0.26063284,705.43,703.69,0.28421606]
[1736956193894,1.05939441,705.7,703.69,0.28421606]
[1736956194394,1.05939441,705.72,703.69,0.28421606]
[1736956194894,0.26053532,705.71,703.7,1.62910361]
[1736956195092,0.26053532,706.11,703.69,0.28421606]
[1736956195290,0.28325001,706.09,703.69,0.28421606]
[1736956195491,0.26053532,706.08,703.69,0.28421606]
[1736956195690,0.26053532,706.07,703.69,0.28421606]
[1736956195890,0.26053532,706.06,703.69,0.28421606]
[1736956196193,0.26053532,706.05,703.69,0.28421606]
[1736956196386,0.26053532,706.04,703.69,0.28421606]
[1736956196590,0.26053532,706.03,703.69,0.28421606]
[1736956196789,0.26053532,706.02,703.69,0.28421606]
[1736956196987,0.26053532,706.01,703.69,0.28421606]
[1736956197289,0.26053532,706.0,703.69,0.28421606]
[1736956197495,0.26053532,705.99,703.69,0.28421606]
[1736956197798,0.26054037,705.98,703.69,0.28421606]
[1736956197991,0.26054037,705.97,703.7,1.62680302]
[1736956198189,0.28325001,706.09,703.69,0.28421606]
[1736956198190,0.26054037,705.96,703.69,0.28421606]
[1736956198496,0.26054037,705.95,703.69,0.28421606]
[1736956198689,0.26054037,705.94,703.69,0.28421606]
[1736956198889,0.26054037,705.93,703.69,0.28421606]
[1736956199192,0.26054037,705.92,703.69,0.28421606]
[1736956199393,0.26054037,705.91,703.69,0.28421606]
[1736956199593,0.26054037,705.9,703.69,0.28421606]
[1736956199796,0.54387063,705.89,703.69,0.28421606]
[1736956199996,0.26054037,705.88,703.69,0.28421606]
[1736956200196,0.26054037,705.87,703.69,0.28421606]
[1736956200397,0.28333026,705.89,703.7,1.62591433]
[1736956200589,0.26057133,705.88,703.7,1.62591433]
[1736956200897,0.26057133,705.87,703.71,0.85083147]
[1736956201090,0.24760271,705.86,703.71,0.85083147]
[1736956201396,0.28333026,705.89,703.71,0.85083147]
[1736956202093,0.26056956,705.88,703.71,0.85083147]
[1736956202292,0.26056956,705.87,703.71,0.85083147]
[1736956202595,0.26056529,705.86,703.71,0.85083147]
[1736956202795,0.26056529,705.85,703.71,0.85083147]
[1736956202995,0.26056529,705.84,703.71,0.85083147]
[1736956203194,0.26056529,705.83,703.71,0.85083147]
[1736956203398,0.26056529,705.82,703.71,0.85083147]
[1736956203599,0.26056529,705.81,703.72,1.62591433]
[1736956203793,0.26056529,705.8,703.72,1.62591433]
[1736956203995,0.26056529,705.79,703.72,1.62591433]
[1736956204191,0.26056529,705.78,703.72,1.62591433]
[1736956204396,0.26056529,705.77,703.72,1.62591433]
[1736956204597,0.26056529,705.76,703.72,1.62591433]
[1736956204897,0.26056529,705.75,703.72,1.62591433]
[1736956205098,0.26056529,705.88,703.72,1.62591433]
[1736956205292,0.26056529,705.87,703.72,1.62591433]
[1736956205494,0.26056529,705.86,703.72,1.62591433]
[1736956205700,0.26056529,705.85,703.72,1.62591433]
[1736956205900,0.26056529,705.84,703.72,1.62591433]
[1736956206100,0.26056529,705.83,703.72,1.62591433]
[1736956206298,0.26056529,705.88,703.72,1.62591433]
[1736956206499,0.26056529,705.87,703.72,1.62591433]
[1736956206701,0.26056529,705.86,703.72,1.62591433]
[1736956206901,0.28333026,705.89,703.72,1.62591433]
[1736956206902,0.26056529,705.85,703.72,1.62591433]
[1736956207102,0.26056529,705.84,703.69,0.28421606]
[1736956207302,0.54391963,705.83,703.7,1.62552332]
[1736956207504,0.26056529,705.82,703.7,1.62552332]
[1736956207803,0.26056529,705.82,703.69,0.28421606]
[1736956207804,0.26056529,705.81,703.69,0.28421606]
[1736956208001,0.26055641,705.8,703.69,0.28421606]
[1736956208198,0.26055641,705.79,703.69,0.28421606]
[1736956208400,0.26055641,705.78,703.69,0.28421606]
[1736956208604,0.26055641,705.77,703.69,0.28421606]
[1736956208903,0.26055644,705.76,703.69,0.28421606]
[1736956209100,0.26055644,705.75,703.69,0.28421606]
[1736956209305,0.26055644,705.74,703.69,0.28421606]
[1736956209505,0.26055644,705.73,703.69,0.28421606]
[1736956209698,0.28335434,705.83,703.69,0.28421606]
[1736956209699,0.26055644,705.72,703.69,0.28421606]
[1736956209903,0.26055644,705.71,703.69,0.28421606]
[1736956210105,0.26055644,705.7,703.69,0.28421606]
[1736956210302,0.26055644,705.69,703.69,0.28421606]
[1736956210510,0.26055644,705.68,703.69,0.28421606]
[1736956210703,0.26055644,705.67,703.69,0.28421606]
[1736956211005,0.26055644,705.66,703.69,0.28421606]
[1736956211204,0.26055644,705.65,703.69,0.28421606]
[1736956211406,0.26055644,705.64,703.69,0.28421606]
[1736956211605,0.26055644,705.63,703.69,0.28421606]
[1736956211803,0.26055644,705.62,703.69,0.28421606]
[1736956212003,0.26055644,705.61,703.69,0.28421606]
[1736956212205,0.26055644,705.6,703.69,0.28421606]
[1736956212406,0.26055644,705.59,703.69,0.28421606]
[1736956212609,0.26055644,705.58,703.69,0.28421606]
[1736956212807,0.26055644,705.57,703.69,0.28421606]
[1736956213006,0.26055644,705.56,703.69,0.28421606]
[1736956213308,0.26062615,705.55,703.69,0.28421606]
[1736956213506,1.05939441,705.74,703.69,0.28421606]
[1736956213705,0.2606244,705.73,703.69,0.28421606]
[1736956213905,0.2606244,705.72,703.69,0.28421606]
[1736956214106,0.2606244,705.71,703.69,0.28421606]
[1736956214307,1.05939441,705.69,703.69,0.28421606]
[1736956214500,0.2606244,705.68,703.69,0.28421606]
[1736956214707,0.2606244,705.67,703.69,0.28421606]
[1736956215007,0.2606244,705.66,703.69,0.28421606]
[1736956215203,0.2606244,705.65,703.69,0.28421606]
[1736956215408,0.28335434,705.83,703.69,0.28421606]
[1736956215409,1.05939441,705.53,703.69,0.28421606]
[1736956215601,0.2606244,705.52,703.69,0.28421606]
[1736956215805,0.2606244,705.51,703.69,0.28421606]
[1736956216007,0.2606244,705.5,703.69,0.28421606]
[1736956216199,0.2606244,705.49,703.69,0.28421606]
[1736956216402,0.26065079,705.48,703.69,0.28421606]
[1736956216610,1.05939441,705.44,703.69,0.28421606]
[1736956216907,0.26065079,705.43,703.69,0.28421606]
[1736956217108,1.05939441,705.44,703.69,0.28421606]
[1736956217307,0.26065978,705.43,703.69,0.28421606]
[1736956217511,1.05939441,705.39,703.69,0.28421606]
[1736956217703,0.26065978,705.38,703.69,0.28421606]
[1736956218008,0.26065978,705.37,703.69,0.28421606]
[1736956218209,0.26065978,705.36,703.69,0.28421606]
[1736956218405,1.32005419,705.36,703.69,0.28421606]
[1736956218606,0.26065978,705.35,703.69,0.28421606]